[Event "LEM Niedersachsen-Meister 2025"]
[Site "Verden"]
[Date "2025.01.02"]
[Round "1.12"]
[White "Gaertner, Alessandro"]
[Black "Polster, Christian"]
[Result "0-1"]
[ECO "A13"]
[WhiteElo "1970"]
[BlackElo "2252"]
[Annotator "TA"]
[PlyCount "150"]
[EventDate "2024.12.27"]
[EventType "swiss"]
[EventCountry "GER"]
[SourceTitle "playchess.com"]
[Source "ChessBase"]
[SourceQuality "1"]
[TimeControl "40/5400+30:1800+30"]

{[%evp 46,150,-9,-20,-21,-20,-8,-12,13,-9,-6,-10,-12,-20,0,-24,-19,-14,0,0,0,0,0,0,0,0,0,-25,-14,-27,-1,-59,-47,-46,-50,-40,-43,-49,-57,-62,-45,-38,-53,-39,-40,-87,-86,-86,-86,-87,-29,-158,-158,-156,-157,-217,-17,-18,-18,-93,-99,-106,-91,-104,-80,-92,-73,-81,-78,-112,-72,-113,-66,-66,-68,-110,-71,-68,-68,-77,-77,-77,-73,-165,-173,-236,-8,-8,0,-73,-73,-73,-72,-71,-53,-2165,-2060,-2060,-1672,-2135,-1713,-4631,-4629,-29985,-29985,-29987,-29987]} 1. Nf3 {[%emt 0:00:04]} d5 {[%emt 0:00:09]} 2. e3 {[%emt 0:00:12]} Nf6 {[%emt 0:00:16]} 3. c4 {[%emt 0:00:16]} e6 {[%emt 0:00:13]} 4. Nc3 {[%emt 0:00:24]} Be7 {[%emt 0:00:08]} 5. b3 {[%emt 0:00:36]} O-O {[%emt 0:00:13]} 6. Bb2 {[%emt 0:00:15]} c5 {[%emt 0:00:20]} 7. cxd5 {[%emt 0:01:25]} exd5 {[%emt 0:00:07]} 8. Bd3 {[%emt 0:05:29]} Nc6 {[%emt 0:02:32]} 9. O-O {[%emt 0:04:03]} Bg4 {[%emt 0:01:10]} 10. h3 {[%emt 0:10:23]} Bh5 {[%emt 0:01:24]} 11. Ne2 {[%emt 0:27:29]} d4 {[%emt 0:15:28]} 12. Nf4 {[%emt 0:15:55]} Bg6 {[%emt 0:09:52]} 13. Nxg6 {[%emt 0:06:38]} hxg6 {[%emt 0:00:04]} 14. Bb5 {[%emt 0:10:25]} dxe3 {[%emt 0:03:02]} 15. dxe3 {[%emt 0:00:15]} Qb6 {[%emt 0:00:48]} 16. Qe2 {[%emt 0:01:29]} a6 {[%emt 0:04:05]} 17. Bxc6 {[%emt 0:05:01]} Qxc6 {[%emt 0:01:33]} 18. Rfd1 {[%emt 0:00:24]} b5 {[%emt 0:02:38]} 19. Rac1 {[%emt 0:01:25]} Rad8 {[%emt 0:01:58]} 20. Rxd8 {[%emt 0:03:45]} Rxd8 {[%emt 0:00:08]} 21. Rd1 {[%emt 0:01:30]} Rc8 {[%emt 0:01:56]} 22. Rc1 {[%emt 0:01:11]} Qd5 {[%emt 0:05:15]} 23. Qd2 {[%emt 0:01:11]} Qf5 {[%emt 0:07:01]} 24. Qa5 {[%emt 0:01:18]} Qe6 {[%emt 0:01:59]} 25. Qc3 {[%emt 0:00:55]} Bf8 {[%emt 0:02:25]} 26. Qe5 {[%emt 0:00:26]} Qxe5 {[%emt 0:03:37]} 27. Bxe5 {[%emt 0:00:05]} Nd5 {[%emt 0:00:57]} 28. Kf1 {[%emt 0:00:57]} f6 {[%emt 0:05:06]} 29. Bb2 {[%emt 0:00:47]} Nb4 {[%emt 0:01:06]} 30. a4 {[%emt 0:00:26]} (30. Ba3 $5 Nxa2 31. Rc2 $14) 30... Nd3 {[%emt 0:06:37]} 31. Rc2 $1 {[%emt 0:00:16]} Nxb2 {[%emt 0:00:31]} 32. Rxb2 {[%emt 0:00:09]} c4 {[%emt 0:00:10]} 33. axb5 {[%emt 0:00:51]} c3 {[%emt 0:00:26]} 34. Rc2 {[%emt 0:00:14]} axb5 {[%emt 0:00:08]} 35. Nd4 {[%emt 0:00:21]} b4 {[%emt 0:00:38]} 36. Ke2 {[%emt 0:00:21]} Ra8 {[%emt 0:04:46]} 37. Kd3 {[%emt 0:00:54]} Ra1 {[%emt 0:01:23]} 38. Nf3 {[%emt 0:01:02]} (38. f4 $11) 38... Rd1+ $15 {[%emt 0:02:16]} 39. Kc4 {[%emt 0:00:22]} g5 {[%emt 0:02:36]} 40. Re2 {[%emt 0:00:40]} Kf7 {[%emt 0:02:00]} 41. Rc2 {[%emt 0:15:17]} Be7 {[%emt 0:05:10]} 42. Re2 {[%emt 0:05:00]} g6 {[%emt 0:02:52]} 43. Rc2 {[%emt 0:03:44]} Kg7 {[%emt 0:02:12]} 44. Re2 {[%emt 0:04:44]} Kh6 {[%emt 0:06:37]} 45. e4 {[%emt 0:02:23]} (45. Ra2 $15) 45... Kg7 $17 {[%emt 0:01:05]} 46. Rc2 {[%emt 0:00:34]} Bd6 {[%emt 0:03:19]} 47. Re2 {[%emt 0:01:01]} Bf4 {[%emt 0:09:11]} (47... Kf7 $17) 48. Rc2 {[%emt 0:00:56]} (48. Kxb4 $2 Rd2 49. Nxd2 c2 $19 (49... cxd2 $2 50. Rxd2 Bxd2+ 51. Kc5 $19)) (48. Ra2 $1 $11) 48... Rd2 $1 $17 {[%emt 0:01:34]} 49. Ne1 {[%emt 0:00:31]} (49. Nxd2 $2 cxd2 $19) 49... Bd6 $1 {[%emt 0:05:20]} (49... Rd1 50. Nd3 Rd2 51. Rxd2 (51. Nxb4 Be5 $18) 51... cxd2 52. Nb2 $11 (52. Nxb4 $2 d1=Q $19)) 50. f3 {[%emt 0:00:38]} (50. Rxd2 $2 cxd2 51. Nc2 d1=Q $19 (51... d1=B $2 52. Nxb4 Be2+ 53. Nd3 $19)) (50. e5 $2 fxe5 (50... Bxe5 51. Kxb4 f5 52. Kc4 $17) 51. f3 Rd4+ 52. Kb5 Rd1 $19) (50. Kb5 $17) 50... Kf7 $2 {[%emt 0:01:59]} (50... Rd1 51. Nd3 $11) ({Black should play} 50... Bf4 $1 $19 51. g4 (51. Kxb4 Rd1 $17) 51... Kf8 (51... Rd1 52. Nd3 $16) 52. Kxb4 Rd1 53. Rxc3 Rxe1) 51. Rc1 $1 $11 {[%emt 0:00:28]} (51. e5 $2 fxe5 (51... Bxe5 $2 52. Kxb4 Rd4+ 53. Kc5 $17) 52. Rc1 Ke6 $19) 51... Ra2 {[%emt 0:00:17]} 52. Nd3 {[%emt 0:00:30]} (52. Nc2 $11 {keeps the balance.}) 52... Ra8 $1 $17 {[%emt 0:00:24]} 53. Rc2 {[%emt 0:00:42]} (53. Nxb4 $2 Rc8+ 54. Kb5 Rb8+ 55. Kc4 Bxb4 $19) 53... Rc8+ {[%emt 0:00:50]} 54. Kd5 {[%emt 0:00:34]} Be7 {[%emt 0:00:53]} 55. Kd4 {[%emt 0:00:26]} Ke6 {[%emt 0:00:34]} 56. f4 {[%emt 0:00:37]} Rd8+ {[%emt 0:01:04]} 57. Ke3 {[%emt 0:00:03]} f5 {[%emt 0:00:48]} 58. g4 {[%emt 0:00:30]} Rh8 {[%emt 0:00:36]} (58... fxe4 $1 $17 59. Kxe4 Kf6) 59. exf5+ $15 {[%emt 0:00:50]} gxf5 {[%emt 0:00:11]} 60. gxf5+ {[%emt 0:00:19]} Kxf5 {[%emt 0:00:08]} 61. fxg5 {[%emt 0:00:26]} Bxg5+ {[%emt 0:05:09]} 62. Kd4 {[%emt 0:00:15]} Rh4+ {[%emt 0:00:12]} (62... Rxh3 63. Nxb4 Rh4+ 64. Kd3 $15) 63. Kd5 {[%emt 0:00:27]} Bd2 {[%emt 0:00:52]} (63... Rxh3 $6 64. Nxb4 Bf6 65. Rf2+ Kg6 66. Rc2 $11) 64. Kc5 {[%emt 0:01:10]} (64. Ne5 $17 {was forced.}) 64... Ke4 $1 $19 {[%emt 0:01:54]} (64... Rxh3 65. Nxb4 Rh8 66. Na2 $11) 65. Nxb4 {[%emt 0:00:15] [#]} Rh5+ $2 {[%emt 0:00:07]} (65... Rxh3 66. Kc4 $11) (65... Ke3 $1 $19 {[%cal Re3e2] White must now prevent ...Ke2!.} 66. Kb5 Ke2 (66... Rxh3 67. Nd5+ Kd4 68. Nxc3 $15)) 66. Kc4 $11 {[%emt 0:00:32]} Rh8 {[%emt 0:01:05]} 67. Nd3 {[%emt 0:00:33]} (67. Na6 $11) 67... Ke3 $1 $17 {[%emt 0:00:29]} 68. Nc5 {[%emt 0:00:26]} Rh4+ {[%emt 0:00:21]} 69. Kd5 {[%emt 0:00:43]} Ke2 {[%emt 0:00:32]} (69... Rxh3 70. b4 $11) 70. Na4 $2 {[%emt 0:00:32][%mdl 8192]} (70. Ra2 $15) 70... Kd3 $19 {[%emt 0:00:16]} (70... Rxh3 71. Nxc3+ Kd3 72. Rxd2+ Kxd2 73. Ne4+ Ke3 74. Nd6 $11) 71. Ra2 {[%emt 0:00:21] [#]} Rh5+ $1 {[%emt 0:01:37]} (71... Rxh3 72. Nc5+ Ke3 73. b4 $15) 72. Kc6 {[%emt 0:00:09]} c2 $1 {[%emt 0:00:11]} ({Less strong is} 72... Rxh3 73. Nc5+ Ke3 74. Na4 $17) 73. Nb2+ {[%emt 0:00:27]} Kd4 {[%emt 0:00:46]} 74. Nc4 {[%emt 0:01:04]} Rc5+ {[%emt 0:00:15]} (74... c1=B 75. Nxd2 Rxh3 76. Ra4+ Kc3 77. Ne4+ Kxb3 78. Nc5+ Kb2 79. Rb4+ Ka1 80. Nb3+ Rxb3 81. Rxb3 $11) 75. Kb6 {[%emt 0:00:24]} Rxc4 {[%emt 0:00:07]} ({Worse is} 75... c1=B 76. Nxd2 Rc3 77. b4 $11) 0-1

[Event "LEM Niedersachsen-Meister 2025"]
[Site "Verden"]
[Date "2025.01.02"]
[Round "1.13"]
[White "Riemay, David"]
[Black "Schiller, Jan-Hendrik"]
[Result "1-0"]
[ECO "C02"]
[WhiteElo "2243"]
[BlackElo "1952"]
[Annotator "TA"]
[PlyCount "41"]
[EventDate "2024.12.27"]
[EventType "swiss"]
[EventCountry "GER"]
[SourceTitle "playchess.com"]
[Source "ChessBase"]
[SourceQuality "1"]
[TimeControl "40/5400+30:1800+30"]

{[%evp 12,41,14,7,99,98,77,95,210,185,268,241,253,196,236,143,278,275,369,384,372,164,175,95,429,428,908,904,1074,1064,2092,1614]} 1. e4 {[%emt 0:00:02]} e6 {[%emt 0:00:10]} 2. d4 {[%emt 0:00:32]} d5 {[%emt 0:00:12]} 3. e5 {[%emt 0:00:06]} c5 {[%emt 0:00:22]} 4. c3 {[%emt 0:00:04][%cal Bc2c3,Bc3c4,Bc4d5][%mdl 32]} Nc6 {[%emt 0:00:23]} 5. Nf3 {[%emt 0:00:07]} Bd7 {[%emt 0:00:26]} 6. Be2 {[%emt 0:00:10]} f6 {[%emt 0:01:49]} 7. O-O {[%emt 0:01:05]} Nh6 {[%emt 0:06:53]} (7... fxe5 $11 {keeps the balance.} 8. Nxe5 (8. dxe5 Nh6 $11) 8... cxd4 9. cxd4 Nf6) 8. Bxh6 {[%emt 0:08:05]} gxh6 {[%emt 0:00:12]} 9. c4 {[%emt 0:06:10]} cxd4 {[%emt 0:11:33]} (9... dxc4 $16 10. d5 (10. Bxc4 cxd4 11. Nxd4 Nxd4 $14) 10... exd5) 10. cxd5 $18 {[%emt 0:01:13]} (10. Nxd4 fxe5 11. Bh5+ Ke7 $14) 10... Nxe5 {[%emt 0:01:44]} (10... exd5 $142 11. Nxd4 Qb6 (11... fxe5 12. Bh5+ Ke7 13. Re1 $16)) 11. Nxe5 {[%emt 0:23:57]} ({Don't take} 11. Nxd4 exd5 12. Bh5+ Ng6 $18) (11. Qxd4 $6 Qb6 12. Qxb6 axb6 $16) 11... fxe5 {[%emt 0:00:22] [#]} 12. Bh5+ $1 {[%emt 0:00:05]} Ke7 {[%emt 0:00:18]} 13. f4 $40 {[%emt 0:05:33][%mdl 128] White attacks with force.} Bb5 {[%emt 0:04:14]} (13... Qa5 $16) 14. Re1 {[%emt 0:09:10][%cal Bf1e1,Be1e5,Be5e6][%mdl 32]} Qxd5 {[%emt 0:03:27]} 15. Rxe5 {[%emt 0:00:14]} Qd7 {[%emt 0:04:07]} 16. Na3 {[%emt 0:02:37]} (16. f5 $142 d3 17. Qg4 (17. fxe6 $2 {loses.} Qd4+ 18. Kh1 Qxe5 $19) (17. Rxe6+ Kd8 $16)) 16... Bc6 {[%emt 0:03:43] [#] And now ...Bg7 would win.} 17. f5 {[%emt 0:03:51]} (17. Bg4 $1 $18 {[%cal Rg4e6]} Rg8 18. Bxe6 (18. Rxe6+ Qxe6 19. Bxe6 Rxg2+ 20. Kf1 Rxh2 $18) 18... Rxg2+ 19. Kf1 Qxe6 20. Rxe6+ Kxe6 21. Qxd4) 17... Bg7 $2 {[%emt 0:02:05][%mdl 8192]} (17... Rg8 $16) 18. Rxe6+ {[%emt 0:02:19]} Kd8 {[%emt 0:00:27]} (18... Kf8 $142 19. Qd3 Bd5) 19. Nc4 {[%emt 0:01:17]} Kc7 {[%emt 0:04:57]} 20. Qe1 {[%emt 0:00:08]} Bf8 {[%emt 0:09:52]} 21. Qg3+ {[%emt 0:01:15]} 1-0

[Event "LEM Niedersachsen-Meister 2025"]
[Site "Verden"]
[Date "2025.01.02"]
[Round "1.14"]
[White "de Vries, Carsten"]
[Black "Nechitaylo, Nikita"]
[Result "0-1"]
[ECO "B30"]
[WhiteElo "1898"]
[BlackElo "2239"]
[Annotator "TA"]
[PlyCount "110"]
[EventDate "2024.12.27"]
[EventType "swiss"]
[EventCountry "GER"]
[SourceTitle "playchess.com"]
[Source "ChessBase"]
[SourceQuality "1"]
[TimeControl "40/5400+30:1800+30"]

{[%evp 9,110,42,44,0,0,1,0,-14,-16,-35,-25,-29,-30,-30,-16,-66,-55,-62,-58,-64,-77,-95,-40,-93,-62,-51,-23,-82,-48,-121,-54,-64,-56,-56,-25,-73,0,0,15,25,43,-56,-30,-35,0,-25,-21,-68,-68,-50,0,0,0,-62,-70,-347,-336,-340,-306,-280,-248,-267,-253,-223,-226,-250,-276,-250,-255,-273,-242,-209,-185,-212,-202,-210,-200,-218,-198,-185,-178,-4116,-1202,-5623,-5614,-29953,-29956,-29958,-29960,-29972,-29973,-29971,-29965,-29976,-29977,-29978,-29979,-29979,-29980,-29980,-29981,-29981,-29982]} 1. e4 {[%emt 0:00:02]} c5 {[%emt 0:00:04]} 2. Nf3 {[%emt 0:00:07]} Nc6 {[%emt 0:00:04]} 3. Bb5 {[%emt 0:00:23]} e5 {[%emt 0:00:06]} 4. O-O {[%emt 0:02:01]} Bd6 {[%emt 0:00:25]} 5. c3 {[%emt 0:04:34]} a6 {[%emt 0:00:05]} 6. Bxc6 {[%emt 0:01:39]} dxc6 {[%emt 0:00:06]} 7. h3 {[%emt 0:00:54]} Ne7 {[%emt 0:07:22]} 8. d3 {[%emt 0:17:53]} O-O {[%emt 0:03:53]} 9. Nbd2 {[%emt 0:05:21]} Ng6 {[%emt 0:06:48]} 10. Nc4 {[%emt 0:04:02]} Bc7 {[%emt 0:02:03]} 11. a4 {[%emt 0:09:22]} b5 {[%emt 0:09:16]} 12. Na3 {[%emt 0:03:44]} (12. Ne3 $11) 12... h6 {[%emt 0:19:17]} 13. Be3 {[%emt 0:00:30]} Qe7 {[%emt 0:00:45]} 14. Qe2 {[%emt 0:01:38]} Be6 {[%emt 0:03:31]} (14... bxa4 $6 15. Nc4 $11) 15. Nc2 {[%emt 0:15:07]} Rfd8 {[%emt 0:06:23]} (15... f5 $17 16. exf5 Bxf5 (16... Rxf5 17. Nd2 $15)) 16. Nh2 {[%emt 0:02:22]} (16. axb5 $15 cxb5 17. Rfd1) 16... Kh7 {[%emt 0:08:55]} 17. Rfd1 {[%emt 0:01:55]} f5 {[%emt 0:03:59]} 18. f3 {[%emt 0:04:57]} (18. exf5 $11 {remains equal.} Bxf5 19. Ne1) 18... fxe4 {[%emt 0:08:50]} 19. dxe4 {[%emt 0:00:37]} ({White should try} 19. fxe4 $15 Bb3 20. Rf1) 19... Bc4 {[%emt 0:02:11]} (19... Nf4 $17 20. Bxf4 Rxd1+ (20... exf4 21. Rxd8 Rxd8 22. Ne1 $19) 21. Rxd1 Bc4 (21... exf4 22. axb5 axb5 23. Ne1 $17)) 20. Qf2 $15 {[%emt 0:00:35]} Rxd1+ {[%emt 0:00:04]} 21. Rxd1 {[%emt 0:00:09]} Rd8 {[%emt 0:00:05]} 22. Rd2 {[%emt 0:04:20]} (22. Rxd8 $11 Qxd8 23. Nf1) 22... Bb3 {[%emt 0:01:35]} (22... Nf4 $17 {...Nd3 would now be deadly.} 23. Ne1 bxa4 (23... Rxd2 24. Qxd2 bxa4 25. Kh1 $17)) 23. Rxd8 $11 {[%emt 0:03:48]} Qxd8 {[%emt 0:00:07]} 24. axb5 {[%emt 0:00:54]} cxb5 {[%emt 0:03:35]} 25. Nf1 {[%emt 0:02:45]} (25. Bxc5 $14 Nf4 26. Ne1) 25... Qd1 {[%emt 0:00:57]} 26. Ne1 {[%emt 0:00:48]} c4 {[%emt 0:00:26]} 27. Qd2 {[%emt 0:00:33]} Nf4 $36 {[%emt 0:00:33][%mdl 2048] Black is pushing.} (27... Qxd2 {simplifies} 28. Nxd2 Ba4 29. Ba7 Nf8) 28. Kh2 {[%emt 0:03:28]} (28. Qxd1 $11 {might be stronger.} Bxd1 29. Bc5) 28... a5 $15 {[%emt 0:00:17] Black is much more active.} 29. g3 {[%emt 0:01:49]} Qe2+ {[%emt 0:00:12]} (29... Qxd2+ $15 30. Nxd2 Ne6) 30. Qxe2 $11 {[%emt 0:00:59]} Nxe2 {[%emt 0:00:03]} 31. Kg2 {[%emt 0:00:46]} (31. Bc5 $1 $11) 31... b4 $15 {[%emt 0:00:32]} 32. Bd2 $2 {[%emt 0:03:14][%mdl 8192]} (32. cxb4 $15 axb4 33. Bc5) 32... bxc3 $19 {[%emt 0:00:05]} 33. bxc3 {[%emt 0:00:56]} Bb6 {[%emt 0:00:44]} 34. Ne3 {[%emt 0:01:03]} Bxe3 {[%emt 0:00:03]} 35. Bxe3 {[%emt 0:00:19][%mdl 4096] Endgame KBN-KBN} a4 $1 {[%emt 0:00:05][%cal Oa4a3]} ({Weaker is} 35... Nxc3 36. Bd2 Nb5 37. Bxa5 $11) 36. Bc5 {[%emt 0:01:01]} Nxc3 {[%emt 0:00:03]} 37. Ba3 {[%emt 0:00:52]} Nb1 {[%emt 0:00:03]} 38. Bb2 {[%emt 0:00:18]} a3 {[%emt 0:02:02]} 39. Ba1 {[%emt 0:00:09]} Bd1 {[%emt 0:09:06]} ({Much less strong is} 39... c3 40. Kf2 $19) 40. Kf2 {[%emt 0:00:53]} Nd2 {[%emt 0:02:42]} 41. Bxe5 {[%emt 0:32:27]} a2 {[%emt 0:30:06]} 42. Ke3 {[%emt 0:01:09]} Nb3 {[%emt 0:00:05]} 43. f4 {[%emt 0:00:27]} a1=Q {[%emt 0:03:50]} 44. Bxa1 {[%emt 0:00:02]} Nxa1 {[%emt 0:00:08]} 45. Kd4 $2 {[%emt 0:01:25]} (45. Kd2 Ba4 46. Kc3) 45... Nc2+ {[%emt 0:00:06]} 46. Nxc2 {[%emt 0:00:17]} Bxc2 {[%emt 0:00:04] KB-KP} 47. g4 {[%emt 0:00:00]} Kg6 {[%emt 0:00:00]} 48. h4 {[%emt 0:00:00]} Kf7 {[%emt 0:00:00]} 49. e5 {[%emt 0:00:00]} Bd1 {[%emt 0:00:00]} 50. g5 {[%emt 0:00:00]} Ke6 {[%emt 0:00:00]} 51. gxh6 {[%emt 0:00:00]} gxh6 {[%emt 0:00:00]} 52. Kxc4 {[%emt 0:00:00]} Kf5 {[%emt 0:00:00]} 53. Kd4 {[%emt 0:00:00]} Kxf4 {[%emt 0:00:00]} 54. e6 {[%emt 0:00:00]} Kg4 {[%emt 0:00:00]} 55. e7 {[%emt 0:00:00]} Ba4 $1 {[%emt 0:00:00]} (55... Kxh4 56. e8=Q (56. e8=R h5 $11) 56... Kg5 57. Qb5+ Kg4 58. Qd7+ (58. Qd3 Ba4 $18) 58... Kf4 59. Qf7+ Kg4 60. Ke5 (60. Qg6+ Kf4 61. Qxh6+ Kf5 62. Qc6 Bh5 63. Qe4+ Kf6 64. Qh4+ Kg6)) 0-1

[Event "LEM Niedersachsen-Meister 2025"]
[Site "Verden"]
[Date "2025.01.02"]
[Round "1.15"]
[White "Bargsten, Justus"]
[Black "ter Stal, Lars"]
[Result "0-1"]
[ECO "C50"]
[WhiteElo "2228"]
[BlackElo "1815"]
[Annotator "TA"]
[PlyCount "70"]
[EventDate "2024.12.27"]
[EventType "swiss"]
[EventCountry "GER"]
[SourceTitle "playchess.com"]
[Source "ChessBase"]
[SourceQuality "1"]
[TimeControl "40/5400+30:1800+30"]

{[%evp 11,69,17,24,-13,8,8,0,-25,-23,-26,-28,-44,-22,-44,-31,-58,-20,-27,-11,-17,-8,-21,0,-54,-41,-56,-46,-50,-49,-143,-20,-52,-43,-122,-117,-100,-69,-72,0,0,0,-81,-87,-142,-144,-132,-112,-212,-108,-29958,-29953,-12848,-9239,-29982,-487,-29996,-29997,-29998,-29999,-29999]} 1. e4 {[%emt 0:00:02]} e5 {[%emt 0:00:11]} 2. Nf3 {[%emt 0:00:06]} Nc6 {[%emt 0:03:05]} 3. Bc4 {[%emt 0:00:07]} Bc5 {[%emt 0:00:08]} 4. d3 {[%emt 0:00:21]} Nf6 {[%emt 0:01:04]} 5. Bg5 {[%emt 0:00:05]} h6 {[%emt 0:02:19]} 6. Bh4 {[%emt 0:00:05]} d6 {[%emt 0:00:43]} 7. Nbd2 {[%emt 0:00:31]} Na5 {[%emt 0:14:52]} 8. Bb5+ {[%emt 0:02:39]} c6 {[%emt 0:00:23]} 9. Ba4 {[%emt 0:00:05]} (9. d4 $5) 9... b5 {[%emt 0:00:14]} 10. Bb3 $1 {[%emt 0:00:05]} Nxb3 {[%emt 0:00:10]} 11. axb3 {[%emt 0:00:32]} Qe7 {[%emt 0:07:51]} 12. c3 {[%emt 0:00:22]} Bb6 {[%emt 0:07:56]} 13. Qe2 {[%emt 0:03:50]} Bg4 {[%emt 0:14:20]} 14. h3 {[%emt 0:00:23]} Bh5 {[%emt 0:00:06]} 15. g4 {[%emt 0:00:54]} Bg6 {[%emt 0:01:51]} 16. Nf1 {[%emt 0:00:49]} h5 {[%emt 0:01:30]} 17. Rg1 {[%emt 0:05:19]} (17. Ng3 $11) 17... Qe6 $15 {[%emt 0:06:13]} 18. Ne3 {[%emt 0:08:46]} Bxe3 {[%emt 0:03:47]} (18... Qxb3 $6 19. Bxf6 gxf6 20. Nd5 cxd5 21. Ra3 $11) 19. Qxe3 {[%emt 0:07:41]} hxg4 {[%emt 0:01:53]} 20. Bxf6 {[%emt 0:10:18]} (20. Rxa7 $15 O-O (20... Rxa7 21. Qxa7 O-O 22. hxg4 $15) 21. hxg4) 20... gxf6 {[%emt 0:08:13]} (20... Rxh3 $17 21. Bxg7 Rxf3) 21. hxg4 $11 {[%emt 0:58:00]} Qxb3 {[%emt 0:01:35]} 22. Ke2 {[%emt 0:00:00]} (22. Rxa7 $15 O-O 23. Kf1 Rxa7 (23... Qxb2 24. Rd7 $15) 24. Qxa7) 22... Qxb2+ $17 {[%emt 0:00:00]} 23. Nd2 {[%emt 0:00:00]} c5 {[%emt 0:08:39]} 24. Qf3 {[%emt 0:00:00]} c4 {[%emt 0:03:12]} ({Black should play} 24... Ke7 $17 25. Rab1 Qxc3 26. Rxb5 Rhb8) 25. dxc4 $11 {[%emt 0:00:00]} bxc4 {[%emt 0:00:36]} (25... Ke7 $6 26. Rgb1 Qc2 27. Rxb5 $16) 26. Qxf6 {[%emt 0:00:00]} (26. Ra6 $11) 26... Rh3 $1 $17 {[%emt 0:01:15]} 27. Qxd6 {[%emt 0:00:00]} (27. Rh1 $142 Rd3 (27... Rxc3 28. Rh8+ Kd7 29. Rxa8 $18) (27... Qxc3 28. Rxh3 Qxh3 29. Nxc4 $11) 28. Qh8+ (28. Rh8+ Kd7 $11) 28... Ke7 29. Qxa8 Rxd2+ (29... Qxd2+ $2 30. Kf1 $18) 30. Kf3 Rxf2+ (30... Qxc3+ 31. Kg2 $11) 31. Kg3 Rg2+ (31... Qxc3+ 32. Kxf2 Qd4+ 33. Kg3 $11) 32. Kh3) 27... Rd8 $1 $36 {[%emt 0:00:35][%mdl 2048] Black has strong initiative.} 28. Qxe5+ {[%emt 0:00:00]} Kf8 {[%emt 0:00:07] Chess con chili. Black has more active pieces.} 29. Rgd1 {[%emt 0:00:00][%cal Oe5f6] [#]} Bxe4 {[%emt 0:06:01]} ({Wrong is} 29... Rxd2+ $2 30. Rxd2 $18) (29... Re8 $1 $19 {[%cal Re8e5][%mdl 512]} 30. Qd6+ (30. Rab1 Qxd2+) 30... Kg8) 30. Qc5+ $2 {[%emt 0:00:00][%mdl 8192] [#] White is weak on the light squares} (30. Qxe4 $17 Re8 (30... Qxc3 31. Rac1 $18) 31. Qxe8+ Kxe8 32. Rdb1) 30... Kg8 $1 {[%emt 0:00:17]} 31. Qg5+ {[%emt 0:00:00]} Kh7 {[%emt 0:00:06] ( -> ...Bd3+)} 32. f3 {[%emt 0:00:00] [#]} Qxc3 {[%emt 0:02:44]} 33. Kf2 {[%emt 0:00:00] [#]} (33. Qxd8 Bxf3+ 34. Kf2 Rh2+ (34... Bxd1 $2 35. Ra3 $19) 35. Kg3 Qe5+ (35... Bxd1+ 36. Kxh2 Qe5+ 37. Kg2 $11) 36. Kxf3 Rh3+ 37. Kg2 Qg3+ 38. Kf1 Rh1+ (38... Qf4+ 39. Kg1 Rg3+ 40. Kh2 Qf2+ 41. Kh1 Rh3#) 39. Ke2 Rh2+ 40. Kf1 Qf2#) (33. Qf4 $19 Qd3+ (33... Rxd2+ $2 34. Rxd2 Bd3+ 35. Kf2 $19) 34. Ke1) 33... Rxd2+ $1 {[%emt 0:01:18][%mdl 512]} 34. Rxd2 {[%emt 0:00:00]} (34. Kg1 Qd4+) 34... Qxf3+ {[%emt 0:00:07]} 35. Kg1 {[%emt 0:00:00]} Rh1# {[%emt 0:00:05]} 0-1